bitfinex-derivatives/quotes_SOLF0:USTF0_20250321
["timestamp","ask_amount","ask_price","bid_price","bid_amount"]
[1742526544429,19.32776997,127.73,127.7,0.04965725]
[1742526545126,7.89073808,127.73,127.7,0.04965725]
[1742526546328,0.05773808,127.73,127.7,0.04965725]
[1742526547021,7.89043808,127.73,127.7,0.04965725]
[1742526547223,0.05773808,127.73,127.7,0.04965725]
[1742526547429,7.89103808,127.73,127.7,0.04965725]
[1742526548429,0.05773808,127.73,127.7,0.04965725]
[1742526549423,0.05773808,127.73,127.7,17.93791951]
[1742526550027,0.05773808,127.73,127.72,7.8333]
[1742526556937,3.808e-05,127.73,127.72,7.8333]
[1742526557834,3.808e-05,127.73,127.72,25.72156226]
[1742526558732,3.808e-05,127.73,127.72,291.98156226]
[1742526559025,3.808e-05,127.73,127.72,294.02696226]
[1742526560029,2.1733,127.81,127.72,286.19366226]
[1742526560235,2.1733,127.81,127.75,17.88826226]
[1742526560435,2.1733,127.81,127.76,30.6]
[1742526560830,2.1733,127.81,127.72,260.4854]
[1742526560831,2.1733,127.81,127.72,258.44]
[1742526561036,2.1733,127.81,127.72,276.32826226]
[1742526561236,0.05934636,127.78,127.75,0.049998]
[1742526561637,0.05934636,127.78,127.77,7.83]
[1742526564137,0.05934636,127.78,127.75,0.049998]
[1742526564541,0.05934636,127.78,127.75,7.880998]
[1742526564838,0.05934636,127.78,127.75,0.049998]
[1742526565033,0.05934636,127.78,127.75,7.881198]
[1742526565341,7.88934636,127.78,127.75,0.049998]
[1742526565737,7.8304,127.77,127.75,0.049998]
[1742526566538,7.88924636,127.78,127.75,0.049998]
[1742526567339,7.88924636,127.78,127.75,7.881198]
[1742526568140,0.05934636,127.78,127.75,0.049998]
[1742526568749,7.8309,127.76,127.75,0.049998]
[1742526570250,49.69169728,127.76,127.75,0.049998]
[1742526570452,41.86079728,127.76,127.75,0.049998]
[1742526570745,30.42,127.76,127.75,0.049998]
[1742526571144,30.42,127.76,127.75,7.881498]
[1742526571446,30.42,127.76,127.75,0.049998]
[1742526573045,49.77014364,127.78,127.75,0.049998]
[1742526573850,49.77014364,127.78,127.75,7.881398]
[1742526574244,11.50014364,127.78,127.75,0.049998]
[1742526574446,0.05934636,127.78,127.77,7.8303]
[1742526577148,0.05934636,127.78,127.75,0.049998]
[1742526577349,11.44079728,127.76,127.66,304.3535]
[1742526577543,11.44079728,127.74,127.69,11.44079728]
[1742526577747,49.57299728,127.74,127.69,11.44079728]
[1742526578349,49.57299728,127.74,127.69,19.27569728]
[1742526578559,0.04982624,127.73,127.7,0.05611606]
[1742526579057,0.04982624,127.73,127.7,7.89061606]
[1742526579556,0.04982624,127.73,127.7,0.05611606]
[1742526580148,0.04982624,127.73,127.7,7.89041606]
[1742526580343,0.04982624,127.73,127.7,0.05611606]
[1742526580548,0.04982624,127.73,127.7,7.89061606]
[1742526581244,0.04982624,127.73,127.72,7.8333]
[1742526581449,0.04982624,127.73,127.72,38.1733]
[1742526583152,0.04982624,127.73,127.72,30.34]
[1742526583357,0.04982624,127.73,127.7,30.43611606]
[1742526584757,0.04982624,127.73,127.71,7.8334]
[1742526584961,0.04982624,127.73,127.7,30.43611606]
[1742526585155,0.04982624,127.73,127.7,48.31802237]
[1742526585563,0.04982624,127.73,127.71,7.8339]
[1742526586563,0.04982624,127.73,127.72,7.8333]
[1742526587167,0.04982624,127.73,127.7,38.27021606]
[1742526587367,0.04982624,127.73,127.7,30.43611606]
[1742526587665,0.04982624,127.73,127.71,7.8336]
[1742526589561,0.04982624,127.73,127.72,7.8333]
[1742526602284,0.04982624,127.73,127.71,7.8337]
[1742526602584,0.04982624,127.73,127.7,0.05611606]
[1742526602982,0.04982624,127.73,127.71,7.8337]
[1742526603981,7.88292624,127.73,127.71,7.8337]
[1742526604280,11.44320948,127.72,127.7,0.05611606]
[1742526604677,7.8339,127.71,127.7,0.05611606]
[1742526604879,19.27710948,127.71,127.7,0.05611606]
[1742526605279,19.27710948,127.71,127.69,7.8349]
[1742526605475,19.27710948,127.71,127.68,7.8355]
[1742526605883,11.44320948,127.71,127.69,7.8349]
[1742526606372,19.27720948,127.71,127.69,7.8349]
[1742526606577,19.33036981,127.71,127.69,7.89335504]
[1742526607190,11.49636981,127.71,127.69,7.89335504]
[1742526608085,11.49636981,127.71,127.7,7.8346]
[1742526609382,19.33046981,127.71,127.69,7.89325504]
[1742526609789,11.49636981,127.71,127.69,7.89325504]
[1742526609987,11.49636981,127.71,127.7,7.8346]
[1742526611086,11.49636981,127.71,127.69,7.89335504]
[1742526611286,41.18320948,127.7,127.69,0.05845504]
[1742526611789,49.01780948,127.7,127.69,0.05845504]
[1742526612987,7.8362,127.68,127.65,7.8373]
[1742526613190,19.27940948,127.68,127.65,7.8373]
[1742526613381,11.44320948,127.68,127.64,258.44]
[1742526613587,19.27910948,127.68,127.65,7.8372]
[1742526614284,11.49696381,127.68,127.65,7.89612925]
[1742526614901,19.33316381,127.68,127.65,7.89612925]
[1742526615689,11.49696381,127.68,127.65,7.89612925]
[1742526615889,11.49696381,127.68,127.66,7.8369]
[1742526616391,11.49696381,127.68,127.66,7.8366]
[1742526616784,11.49696381,127.68,127.65,0.05892925]
[1742526616988,11.49696381,127.68,127.66,7.837]
[1742526618183,11.49696381,127.68,127.65,7.89632925]
[1742526618691,29.62,127.67,127.65,0.05892925]
[1742526619593,29.62,127.67,127.66,7.837]
[1742526620395,0.05375433,127.68,127.67,7.8364]
[1742526621385,0.05375433,127.68,127.66,7.8368]
[1742526621993,0.05375433,127.68,127.65,7.89632925]
[1742526622207,11.49696381,127.68,127.65,0.05892925]
[1742526622388,48.83980948,127.67,127.59,29.56]
[1742526622586,48.83980948,127.67,127.62,11.44320948]
[1742526622587,41.00320948,127.67,127.62,11.44320948]
[1742526622792,29.56,127.67,127.64,11.44320948]
[1742526623093,2.1062,127.68,127.65,7.8373]
[1742526623296,2.1062,127.68,127.63,11.44320948]
[1742526623488,21.43676724,127.68,127.65,0.05646203]
[1742526623897,13.60066724,127.68,127.65,0.05646203]
[1742526624090,13.60066724,127.68,127.65,7.89366203]
[1742526624396,0.05125776,127.68,127.65,7.89366203]
[1742526624791,7.88725776,127.68,127.65,0.05646203]
[1742526625796,19.33046724,127.68,127.65,0.05646203]
[1742526626690,19.33046724,127.68,127.65,7.89406203]
[1742526626894,7.8368,127.67,127.65,0.05646203]
[1742526627698,19.33046724,127.68,127.65,7.89406203]
[1742526628693,0.05125776,127.68,127.65,0.05646203]
[1742526629398,0.05125776,127.68,127.66,7.8366]
[1742526629599,0.05125776,127.68,127.65,0.05646203]
[1742526629892,0.05125776,127.68,127.67,7.8364]
[1742526632489,5.776e-05,127.68,127.67,19.27960948]
[1742526632907,10.64536069,127.74,127.72,7.8329]
[1742526633095,10.64536069,127.74,127.64,21.7756]
[1742526633096,10.64536069,127.74,127.7,40.92320948]
[1742526633796,54.02465226,127.75,127.7,40.92320948]
[1742526633993,0.05884604,127.74,127.72,7.8329]
[1742526634193,0.05884604,127.74,127.71,0.05546372]
[1742526634194,11.50205552,127.74,127.71,0.05546372]
[1742526634495,19.33415552,127.74,127.71,7.88906372]
[1742526634695,11.50205552,127.74,127.71,0.05546372]
[1742526635601,11.50205552,127.74,127.72,7.8333]
[1742526637203,19.33455552,127.74,127.71,7.88906372]
[1742526637403,19.33455552,127.74,127.71,0.05546372]
[1742526637996,11.50205552,127.74,127.72,7.8329]
[1742526638201,0.05884604,127.74,127.72,7.8329]
[1742526641703,7.89104604,127.74,127.71,7.88906372]
[1742526644006,7.89104604,127.74,127.72,7.8333]
[1742526644394,7.89104604,127.74,127.71,0.05546372]
[1742526644604,7.89104604,127.74,127.71,7.88896372]
[1742526644793,7.89104604,127.74,127.71,0.05546372]
[1742526646106,7.8328,127.73,127.71,0.05546372]
[1742526646405,11.50205552,127.74,127.71,0.05546372]
[1742526646599,19.33445552,127.74,127.71,7.88896372]
[1742526647203,19.33445552,127.74,127.72,7.8333]
[1742526648100,19.33445552,127.74,127.71,7.88906372]
[1742526648807,19.33445552,127.74,127.72,7.8333]
[1742526649506,19.33445552,127.74,127.71,7.88916372]
[1742526650405,19.33445552,127.74,127.72,7.8331]
[1742526652310,7.89124604,127.74,127.72,7.8331]
[1742526652808,0.05884604,127.74,127.72,7.8331]
[1742526654212,19.33425552,127.74,127.72,7.8331]
[1742526655012,11.50205552,127.74,127.72,7.8331]
[1742526655212,11.50205552,127.74,127.71,0.05546372]
[1742526655412,12.70366069,127.79,127.73,11.44320948]
[1742526655614,24.14687017,127.79,127.74,11.44320948]
[1742526656614,24.14687017,127.79,127.76,7.8304]
[1742526656615,0.05274379,127.78,127.76,7.8304]
[1742526657817,0.05274379,127.78,127.75,0.06002415]
[1742526658308,0.05274379,127.78,127.75,11.50323363]
[1742526658515,0.05274379,127.78,127.76,7.8306]
[1742526660311,0.05274379,127.78,127.77,7.8303]
[1742526660509,0.05274379,127.78,127.75,11.50323363]
[1742526660709,0.05274379,127.78,127.75,0.06002415]
[1742526661417,0.05274379,127.78,127.76,7.8306]
[1742526662116,7.88244379,127.78,127.76,7.8306]
[1742526662314,0.05274379,127.78,127.76,7.8306]
[1742526663017,11.49595327,127.78,127.75,0.06002415]
[1742526663221,7.8305,127.77,127.75,0.06002415]
[1742526664221,19.32595327,127.78,127.75,7.89122415]
[1742526664421,11.49595327,127.78,127.75,7.89122415]
[1742526664621,19.32595327,127.78,127.75,7.89122415]
[1742526664919,7.88274379,127.78,127.75,19.33443363]
[1742526665121,7.88274379,127.78,127.76,7.8308]
[1742526665321,0.05274379,127.78,127.76,7.8308]
[1742526665822,7.88254379,127.78,127.76,7.8308]
[1742526666922,7.88254379,127.78,127.75,19.33443363]
[1742526667226,7.8304,127.77,127.75,7.89122415]
[1742526667419,0.05274379,127.78,127.75,7.89122415]
[1742526668011,7.88284379,127.78,127.75,7.89122415]
[1742526668216,0.05274379,127.78,127.76,7.8308]
[1742526668822,7.88244379,127.78,127.76,7.8308]
[1742526669615,7.88244379,127.78,127.75,19.33443363]
[1742526670323,7.88244379,127.78,127.76,7.8309]
[1742526673326,7.88244379,127.78,127.75,19.33443363]
[1742526673628,7.88244379,127.78,127.75,11.50323363]
[1742526674126,7.88244379,127.78,127.76,7.8305]
[1742526674633,0.05274379,127.78,127.76,7.8309]
[1742526674831,40.68320948,127.77,127.67,29.24]
[1742526675031,11.44320948,127.74,127.69,269.92320948]
[1742526675231,7.8324,127.74,127.7,19.27750948]
[1742526675433,13.51160948,127.76,127.71,11.44320948]
[1742526675633,7.8319,127.75,127.71,11.44320948]
[1742526676033,0.05564924,127.74,127.72,0.05246859]
[1742526676333,7.88824924,127.74,127.72,0.05246859]
[1742526676528,0.05564924,127.74,127.72,0.05246859]
[1742526677632,7.88804924,127.74,127.72,0.05246859]
[1742526679836,7.8327,127.73,127.72,0.05246859]
[1742526682529,19.27590948,127.73,127.72,0.05246859]
[1742526684541,7.8327,127.73,127.72,0.05246859]
[1742526687239,29.23564924,127.74,127.72,11.49567807]
[1742526687439,0.05564924,127.74,127.72,11.49567807]
[1742526687644,7.88804924,127.74,127.72,11.49567807]
[1742526687945,0.05564924,127.74,127.72,11.49567807]
[1742526688748,0.05564924,127.74,127.72,19.32877807]
[1742526689748,0.05564924,127.74,127.73,7.8327]
[1742526690444,0.05564924,127.74,127.73,19.27590948]
[1742526701257,0.05564924,127.74,127.73,48.59590948]
[1742526702751,29.3,127.79,127.73,40.76320948]
[1742526702958,61.85335226,127.8,127.75,11.44320948]
[1742526703154,71.88144278,127.8,127.76,11.44320948]
[1742526703467,42.58144278,127.8,127.78,7.8292]
[1742526703965,42.63575831,127.8,127.78,7.88484358]
[1742526704166,0.05431553,127.8,127.78,7.88484358]
[1742526704863,0.05431553,127.8,127.78,0.05564358]
[1742526705465,0.05431553,127.8,127.78,7.88524358]
[1742526705663,0.05431553,127.8,127.78,0.05564358]
[1742526706657,0.05431553,127.8,127.78,7.88494358]
[1742526707458,0.05431553,127.8,127.79,7.829]
[1742526707665,0.05431553,127.8,127.78,11.49885306]
[1742526708767,0.05431553,127.8,127.78,19.32805306]
[1742526709569,0.05431553,127.8,127.79,7.829]
[1742526709964,0.05431553,127.8,127.79,19.27220948]
[1742526712367,0.05431553,127.8,127.79,48.41220948]
[1742526715571,42.58144278,127.85,127.79,40.58320948]
[1742526715761,42.58144278,127.85,127.82,11.44320948]
[1742526715962,42.58144278,127.85,127.83,7.8262]
[1742526716464,9.8299,127.86,127.83,7.8262]
[1742526716664,0.054032,127.85,127.83,7.87545065]
[1742526717970,7.879432,127.85,127.83,0.04925065]
[1742526718168,11.49724148,127.85,127.83,0.04925065]
[1742526718468,7.826,127.84,127.83,0.04925065]
[1742526718971,19.26920948,127.84,127.83,0.04925065]
[1742526719872,7.8276,127.82,127.8,36.888]
[1742526720068,7.8276,127.82,127.8,29.06]
[1742526720258,11.44320948,127.83,127.78,40.50320948]
[1742526720466,11.44320948,127.82,127.78,29.06]
[1742526720770,11.44320948,127.82,127.78,7.8295]
[1742526720960,7.8288,127.8,127.78,7.8295]
[1742526721264,0.05280628,127.81,127.79,0.05751191]
[1742526721473,7.88090628,127.81,127.79,7.88631191]
[1742526722076,0.05280628,127.81,127.79,7.88631191]
[1742526722373,0.05280628,127.81,127.79,0.05751191]
[1742526722867,0.05280628,127.81,127.79,7.88611191]
[1742526723570,0.05280628,127.81,127.8,7.8284]
[1742526726269,0.05280628,127.81,127.79,19.32952139]
[1742526726767,0.05280628,127.81,127.8,7.8284]
[1742526727270,0.05280628,127.81,127.8,19.27160948]
[1742526730177,0.05280628,127.81,127.8,48.17160948]
[1742526738186,0.05280628,127.81,127.8,36.7284]
[1742526738391,0.05280628,127.81,127.79,19.32952139]
[1742526739393,0.05280628,127.81,127.8,7.8284]
[1742526740399,0.05280628,127.81,127.79,19.32942139]
[1742526741294,0.05280628,127.81,127.8,7.8284]
[1742526744198,0.05280628,127.81,127.8,19.27160948]
[1742526745598,0.05280628,127.81,127.79,0.05751191]
[1742526746604,0.05280628,127.81,127.79,7.88631191]
[1742526747905,0.05280628,127.81,127.8,7.8284]
[1742526749512,0.05280628,127.81,127.8,19.27160948]
[1742526753613,10.64536069,127.84,127.8,11.44320948]
[1742526753813,10.64536069,127.84,127.83,19.26980948]
[1742526754507,42.58144278,127.87,127.84,7.8254]
[1742526754702,42.58144278,127.87,127.84,19.26860948]
[1742526754908,42.64106956,127.87,127.85,7.8252]
[1742526755315,42.64106956,127.87,127.86,7.8248]
[1742526755516,42.64106956,127.87,127.86,19.26800948]
[1742526757419,0.05962678,127.87,127.86,19.26800948]
[1742526764316,0.05962678,127.87,127.86,7.8248]
[1742526765615,0.05962678,127.87,127.85,28.54]
[1742526765922,11.50283626,127.87,127.84,0.05226392]
[1742526766318,7.8251,127.86,127.84,0.05226392]
[1742526768324,7.8251,127.86,127.84,7.87826392]
[1742526769622,7.8251,127.86,127.84,0.05226392]
[1742526770326,7.8251,127.86,127.84,7.87806392]
[1742526772933,7.8251,127.86,127.84,0.05226392]
[1742526773133,0.05962678,127.87,127.84,0.05226392]
[1742526774026,7.825,127.86,127.84,7.87796392]
[1742526776126,7.88412678,127.87,127.84,7.87796392]
[1742526776327,0.05962678,127.87,127.84,0.05226392]
[1742526776532,7.8252,127.86,127.84,0.05226392]
[1742526777137,7.88412678,127.87,127.84,7.87786392]
[1742526777632,7.88392678,127.87,127.85,7.8249]
[1742526780337,7.88392678,127.87,127.84,19.3210734]
[1742526780539,7.88392678,127.87,127.84,11.4954734]
[1742526781640,7.88392678,127.87,127.85,7.8252]
[1742526782027,7.88392678,127.87,127.84,19.3211734]
[1742526782342,7.8248,127.86,127.84,19.3211734]
[1742526782529,7.8248,127.86,127.84,0.05226392]
[1742526784142,11.44320948,127.86,127.84,0.05226392]
[1742526784743,7.8254,127.85,127.84,0.05226392]
[1742526785336,7.8251,127.86,127.84,0.05226392]
[1742526786743,11.50283626,127.87,127.84,0.05226392]
[1742526790346,11.44320948,127.85,127.84,0.05226392]
[1742526790550,47.46860948,127.85,127.84,0.05226392]
[1742526791346,51.68980948,127.85,127.84,6.392e-05]
[1742526791544,7.8288,127.8,127.77,11.44320948]
[1742526791744,11.44320948,127.8,127.76,269.68320948]
[1742526792040,7.8303,127.77,127.76,258.24]
[1742526792447,11.44320948,127.8,127.76,258.24]
[1742526792747,0.04956579,127.79,127.77,11.50185256]
[1742526793253,0.04956579,127.79,127.77,19.33165256]
[1742526794439,7.87876579,127.79,127.77,19.33165256]
[1742526794838,0.04956579,127.79,127.78,19.27290948]
[1742526796138,0.04956579,127.79,127.77,39.76185256]
[1742526796647,7.87856579,127.79,127.77,47.59195256]
[1742526797241,0.04956579,127.79,127.77,47.59195256]
[1742526799649,7.87876579,127.79,127.77,39.76185256]
[1742526800347,7.87876579,127.79,127.77,11.50185256]
[1742526802053,7.87876579,127.79,127.77,19.33205256]
[1742526802653,0.04956579,127.79,127.77,19.33205256]
[1742526803656,7.87876579,127.79,127.77,19.33205256]
[1742526804844,0.04956579,127.79,127.78,7.8297]
[1742526805048,0.04956579,127.79,127.78,19.27290948]
[1742526806056,0.04956579,127.79,127.77,11.50185256]
[1742526806256,0.04956579,127.79,127.77,0.05864308]
[1742526806658,7.8297,127.78,127.77,0.05864308]
[1742526812254,7.87896579,127.79,127.77,0.05864308]
[1742526812450,0.04956579,127.79,127.77,0.05864308]
[1742526813162,7.8297,127.78,127.77,0.05864308]
[1742526816766,7.8318,127.75,127.71,269.82320948]
[1742526816960,35.9518,127.75,127.71,269.82320948]
[1742526817754,7.8322,127.74,127.72,7.833]
[1742526817960,7.88509138,127.74,127.72,7.88391839]
[1742526818670,7.88509138,127.74,127.72,0.05091839]
[1742526818865,0.05289138,127.74,127.72,0.05091839]
[1742526819069,0.05289138,127.74,127.72,7.88411839]
[1742526821873,0.05289138,127.74,127.73,7.8327]
[1742526822970,0.05289138,127.74,127.72,7.88401839]
[1742526823668,0.05289138,127.74,127.72,0.05091839]
[1742526824173,7.88539138,127.74,127.72,0.05091839]
[1742526824372,11.49610086,127.74,127.72,0.05091839]
[1742526825471,7.8327,127.73,127.72,0.05091839]
[1742526826173,7.88529138,127.74,127.72,7.88421839]
[1742526826373,0.05289138,127.74,127.73,11.44320948]
[1742526827475,0.05289138,127.74,127.73,19.27590948]
[1742526827866,42.58144278,127.78,127.73,11.44320948]
[1742526828062,42.58144278,127.78,127.77,19.27350948]
[1742526829377,0.0528945,127.79,127.78,7.8297]
[1742526829568,0.0528945,127.79,127.78,19.27290948]
[1742526831778,0.0528945,127.79,127.78,11.44320948]
[1742526832275,0.0528945,127.79,127.77,19.27320948]
[1742526833779,0.0528945,127.79,127.78,7.8297]
[1742526834071,0.0528945,127.79,127.78,19.27290948]
[1742526835179,0.0528945,127.79,127.77,19.27330948]
[1742526835875,39.67610398,127.79,127.76,0.05811795]
[1742526836068,11.44320948,127.78,127.76,0.05811795]
[1742526837167,11.44320948,127.77,127.76,0.05811795]
[1742526838176,19.27350948,127.77,127.76,0.05811795]
[1742526838377,11.44320948,127.77,127.72,258.46]
[1742526838681,7.8323,127.74,127.72,258.46]
[1742526839583,7.8327,127.73,127.72,258.51142114]
[1742526839789,0.05293335,127.74,127.72,258.51142114]
[1742526839992,7.88533335,127.74,127.72,258.51142114]
[1742526840785,7.8327,127.73,127.72,258.51142114]
[1742526841187,0.05293335,127.74,127.72,258.51142114]
[1742526841681,0.05293335,127.74,127.72,266.34462114]
[1742526841989,7.88513335,127.74,127.72,258.51142114]
[1742526842489,7.8327,127.73,127.72,258.51142114]
[1742526842786,7.8327,127.73,127.72,0.05142114]
[1742526843285,19.27590948,127.73,127.72,0.05142114]
[1742526843580,7.835,127.7,127.68,11.44320948]
[1742526843786,7.835,127.7,127.67,269.88320948]
[1742526844787,7.88768267,127.7,127.67,269.94208995]
[1742526845187,7.88768267,127.7,127.67,277.77818995]
[1742526845593,0.05268267,127.7,127.68,11.44320948]
[1742526846586,0.05268267,127.7,127.69,7.8352]
[1742526846891,0.05268267,127.7,127.68,11.44320948]
[1742526847089,0.05268267,127.7,127.67,269.94208995]
[1742526847278,0.05268267,127.7,127.68,7.8355]
[1742526847883,0.05268267,127.7,127.69,19.27840948]
[1742526849191,28.18,127.74,127.69,39.62320948]
[1742526849387,28.18,127.74,127.72,11.44320948]
[1742526849783,28.18,127.74,127.72,19.27620948]
[1742526850288,28.23128593,127.74,127.72,19.32872563]
[1742526851192,39.67449541,127.74,127.72,0.05251615]
[1742526851398,11.44320948,127.73,127.72,0.05251615]
[1742526851688,28.23128593,127.74,127.72,0.05251615]
[1742526851885,39.67449541,127.74,127.72,0.05251615]
[1742526852083,28.23128593,127.74,127.72,0.05251615]
[1742526852593,36.06348593,127.74,127.72,0.05251615]
[1742526853182,7.8327,127.73,127.72,0.05251615]
[1742526863395,7.8327,127.73,127.72,1.615e-05]
[1742526863697,12.0746,127.73,127.72,1.615e-05]
[1742526864097,14.0628,127.73,127.72,1.615e-05]
[1742526869405,12.0746,127.73,127.72,1.615e-05]
[1742526869596,35.9727,127.73,127.72,1.615e-05]
[1742526875120,7.88368593,127.74,127.72,1.615e-05]
[1742526875319,35.98368593,127.74,127.72,1.615e-05]
[1742526876512,7.8327,127.73,127.72,1.615e-05]
[1742526884321,19.28105886,127.73,127.72,1.615e-05]
[1742526886529,7.8327,127.73,127.72,1.615e-05]
[1742526887427,78.56522871,127.74,127.72,1.615e-05]
[1742526888024,7.8327,127.73,127.72,1.615e-05]
[1742526888425,70.73272871,127.74,127.72,1.615e-05]
[1742526888622,11.44835886,127.73,127.72,1.615e-05]
[1742526888923,11.44835886,127.73,127.64,11.44835886]
[1742526889126,7.8367,127.67,127.62,286.66]
[1742526889431,7.8367,127.67,127.62,294.4991]
[1742526890029,7.89051363,127.66,127.63,0.0566541]
[1742526890527,0.05331363,127.66,127.63,0.0566541]
[1742526890828,0.05331363,127.66,127.63,7.8954541]
[1742526891029,7.89041363,127.66,127.63,7.8954541]
[1742526891230,7.89041363,127.66,127.63,0.0566541]
[1742526891921,7.8378,127.65,127.63,0.0566541]
[1742526895830,7.8378,127.65,127.63,7.8954541]
[1742526896031,7.89061363,127.66,127.63,7.8954541]
[1742526897225,0.05331363,127.66,127.63,17.96036464]
[1742526899029,7.8341,127.71,127.65,17.90371054]
[1742526899230,7.8341,127.71,127.66,28.08]
[1742526900223,0.05945194,127.7,127.67,0.05882045]
[1742526900428,0.05945194,127.7,127.69,7.835]
[1742526906831,0.05945194,127.7,127.69,35.855]
[1742526913140,0.05945194,127.7,127.69,47.30090058]
[1742526913834,0.05945194,127.7,127.68,266.4155]
[1742526914339,7.89435194,127.7,127.68,266.4155]
[1742526916039,0.05945194,127.7,127.68,266.4155]
[1742526917339,0.05945194,127.7,127.69,7.8352]
[1742526925038,29.9257,127.75,127.73,7.8325]
[1742526926149,29.9796479,127.75,127.73,7.88278199]
[1742526926750,29.9796479,127.75,127.73,0.05028199]
[1742526927346,2.0796479,127.75,127.73,0.05028199]
[1742526927545,2.0796479,127.75,127.73,7.88278199]
[1742526927949,9.9114479,127.75,127.73,7.88278199]
[1742526930949,0.0539479,127.75,127.74,7.8321]
[1742526934048,0.0539479,127.75,127.74,266.3121]
[1742526937155,0.0539479,127.75,127.74,277.7486976]
[1742526938863,7.8288,127.8,127.77,7.8301]
[1742526939062,7.8288,127.8,127.77,19.2666976]
[1742526939857,7.87852764,127.8,127.77,19.32057609]
[1742526940048,7.8294,127.79,127.77,11.49047609]
[1742526940756,7.8297,127.78,127.77,11.49047609]
[1742526941457,7.8294,127.79,127.77,11.49047609]
[1742526941758,7.8294,127.79,127.77,19.32067609]
[1742526942857,7.8294,127.79,127.77,7.88407849]
[1742526943053,7.87822764,127.8,127.78,7.8297]
[1742526943258,7.87822764,127.8,127.77,11.49047609]
[1742526943960,7.87822764,127.8,127.77,19.32017609]
[1742526944158,7.87822764,127.8,127.77,11.49047609]
[1742526944957,7.87822764,127.8,127.77,19.32027609]
[1742526945154,7.87822764,127.8,127.77,11.49047609]
[1742526945354,0.04972764,127.8,127.78,7.8293]
[1742526946161,7.87852764,127.8,127.77,19.32047609]
[1742526946461,0.04972764,127.8,127.77,19.32047609]
[1742526946759,0.04972764,127.8,127.77,11.49047609]
[1742526947461,7.87842764,127.8,127.78,7.8295]
[1742526948357,0.04972764,127.8,127.79,7.829]
[1742526948665,0.04972764,127.8,127.79,19.2655976]
[1742526948962,0.04972764,127.8,127.79,47.1255976]
[1742526949555,7.8262,127.84,127.82,7.8272]
[1742526949751,7.8262,127.84,127.82,19.2637976]
[1742526949964,7.8266,127.83,127.82,11.4365976]
[1742526951659,7.8266,127.83,127.81,11.49304971]
[1742526952160,11.49342399,127.84,127.81,0.05645211]
[1742526952465,11.4365976,127.82,127.81,0.05645211]
[1742526952665,19.2637976,127.82,127.81,0.05645211]
[1742526957469,7.8272,127.82,127.81,0.05645211]
[1742526960568,0.05682639,127.84,127.81,0.05645211]
[1742526960773,0.05682639,127.84,127.81,11.49304971]
[1742526961276,0.05682639,127.84,127.82,7.8269]
[1742526961961,0.05682639,127.84,127.83,7.8266]
[1742526964384,0.05682639,127.84,127.82,19.2634976]
[1742526965386,7.88292639,127.84,127.82,19.2634976]
[1742526965587,7.88292639,127.84,127.81,19.32054971]
[1742526965988,39.3165976,127.83,127.81,0.05645211]
[1742526966287,19.2637976,127.82,127.81,0.05645211]
[1742526967286,7.8272,127.82,127.81,0.05645211]
[1742526969393,35.7068,127.83,127.81,0.05645211]
[1742526970189,7.8272,127.82,127.81,0.05645211]
[1742526973694,19.2637976,127.82,127.81,0.05645211]
[1742526981990,47.1437976,127.82,127.81,0.05645211]
[1742526983398,7.8293,127.79,127.76,39.3365976]
[1742526983598,7.8293,127.79,127.75,11.4365976]
[1742526983799,7.8293,127.79,127.76,19.2670976]
[1742526983996,7.8297,127.78,127.76,19.2670976]
[1742526984594,7.88180818,127.78,127.76,19.32053398]
[1742526987204,7.88180818,127.78,127.76,11.49003398]
[1742526987501,7.8303,127.77,127.76,0.05343638]
[1742526990098,19.2565976,127.77,127.64,279.08466723]
[1742526990399,11.4365976,127.71,127.67,11.4365976]
[1742526990598,39.3965976,127.71,127.67,11.4365976]
[1742526990800,7.8352,127.69,127.67,11.4365976]
[1742526991103,7.8352,127.69,127.66,11.4365976]
[1742526991303,7.885922,127.69,127.67,0.05003199]
[1742526992306,7.8358,127.68,127.67,0.05003199]
[1742526992904,7.8374,127.66,127.64,269.7765976]
[1742526993105,11.4365976,127.67,127.62,11.4365976]
[1742526993406,7.8375,127.66,127.62,11.4365976]
[1742526994104,0.0505357,127.65,127.63,0.05248275]
[1742526994305,7.8882357,127.65,127.63,0.05248275]
[1742526994509,35.8882357,127.65,127.63,0.05248275]
[1742526994703,11.4365976,127.64,127.63,0.05248275]
[1742526994909,11.4365976,127.64,127.6,11.4365976]
[1742526994910,11.4365976,127.64,127.59,269.7965976]
[1742526995809,28.0505357,127.65,127.61,11.4365976]
[1742526996010,39.4871333,127.65,127.6,11.48813887]
[1742526996206,11.4365976,127.64,127.6,0.05154127]
[1742526997314,11.4365976,127.63,127.6,0.05154127]
[1742526998118,28.02,127.62,127.6,0.05154127]
[1742526998414,39.4565976,127.62,127.6,0.05154127]
[1742526998614,11.4365976,127.61,127.54,258.5]